bitfinex/quotes_ETHUSD_20260227
["timestamp","ask_amount","ask_price","bid_price","bid_amount"]
[1772198007170,0.68159554,1961.4,1961.1,0.00431073]
[1772198007394,1.97900854,1961.6,1961.1,0.00431073]
[1772198007898,0.70453844,1961.6,1961.1,0.00431073]
[1772198008298,5.09687915,1962.0,1961.2,0.00752808]
[1772198008299,1.97880654,1962.0,1961.2,0.00752808]
[1772198009278,1.97880654,1962.0,1961.4,0.00853098]
[1772198009499,0.70453844,1961.9,1961.4,0.00853098]
[1772198009696,0.70453844,1961.9,1961.2,1.28430766]
[1772198010291,0.70453844,1961.9,1961.3,0.01059933]
[1772198011808,1.454,1961.8,1961.4,1.27459977]
[1772198012507,1.454,1961.8,1961.4,1.28772045]
[1772198012703,1.454,1961.8,1961.4,0.01312068]
[1772198013309,2.15853844,1961.8,1961.4,0.01312068]
[1772198013912,2.15853844,1961.8,1961.4,1.28769814]
[1772198014085,3.43287969,1961.8,1961.4,1.28769814]
[1772198014286,2.15853844,1961.8,1961.4,1.28769814]
[1772198014492,0.70453844,1961.8,1961.4,1.28769814]
[1772198014812,3.43389218,1961.8,1961.4,0.01312068]
[1772198015109,2.15953844,1961.8,1961.4,1.2877164]
[1772198018586,0.70453844,1961.7,1961.2,0.0011]
[1772198018892,0.70453844,1961.5,1961.1,1.27478877]
[1772198019615,0.70453844,1961.5,1961.0,1.29742764]
[1772198020417,0.70453844,1961.3,1960.8,0.02489]
[1772198020789,1.458,1961.4,1960.8,0.02489]
[1772198021817,0.70453844,1961.6,1960.8,0.02489]
[1772198022890,0.70453844,1961.5,1961.0,0.0270767]
[1772198024119,0.70453844,1961.5,1960.9,1.27492477]
[1772198024417,0.70453844,1961.2,1960.8,1.3042039]
[1772198024608,0.70453844,1961.2,1960.9,0.0011]
[1772198024994,0.70453844,1961.2,1960.8,1.3042039]
[1772198024995,0.70453844,1961.2,1960.8,1.3053039]
[1772198026020,1.458,1961.3,1960.9,0.03026673]
[1772198026239,1.97901588,1961.6,1960.9,0.0313044]
[1772198026415,0.70453844,1961.6,1960.9,0.0313044]
[1772198026920,2.16253844,1961.6,1961.0,1.27485976]
[1772198027217,3.43700855,1961.6,1961.1,0.0313044]
[1772198027392,0.70453844,1961.5,1960.8,1.27604112]
[1772198027595,0.70453844,1961.5,1960.7,1.30735605]
[1772198028124,0.70453844,1961.3,1960.7,1.30735605]
[1772198029219,0.70453844,1961.2,1960.7,1.30735605]
[1772198031444,0.70453844,1961.1,1960.7,1.30735605]
[1772198034328,1.9792409,1961.3,1960.7,1.30735605]
[1772198034625,0.70453844,1961.2,1960.7,1.30735605]
[1772198037301,0.70453844,1961.4,1960.8,0.04313844]
[1772198037547,0.001,1961.1,1960.8,0.04313844]
[1772198037748,0.70453844,1961.4,1960.9,0.04103844]
[1772198039054,0.70503844,1961.3,1960.8,0.0011]
[1772198039224,0.70503844,1961.3,1960.8,1.27604185]
[1772198040243,0.70503844,1961.3,1960.8,0.0011]
[1772198040557,0.70503844,1961.3,1960.8,1.27607757]
[1772198040926,2.16403844,1961.3,1960.8,1.27607757]
[1772198041149,3.43871728,1961.3,1960.8,0.04569573]
[1772198041736,2.16403844,1961.3,1960.8,0.04569573]
[1772198042126,3.43970588,1961.3,1960.8,0.04569573]
[1772198043053,0.70503844,1961.2,1960.8,0.04569573]
[1772198043251,0.70503844,1961.2,1960.8,1.32063223]
[1772198044271,0.70503844,1961.1,1960.7,1.27613992]
[1772198045060,2.27850303,1960.9,1960.5,0.0011]
[1772198045231,2.27850303,1960.9,1960.2,5.10132679]
[1772198045232,1.98010211,1960.7,1960.2,1.32334609]
[1772198045430,0.70503844,1960.7,1960.2,1.32334609]
[1772198045640,1.9800957,1960.7,1960.2,1.32334609]
[1772198045845,0.70503844,1960.7,1960.2,1.32334609]
[1772198046040,0.70503844,1960.6,1960.2,1.32334609]
[1772198046673,0.70503844,1961.4,1960.3,0.04884483]
[1772198046958,0.70503844,1961.1,1960.3,0.04884483]
[1772198047158,0.70503844,1960.9,1960.3,0.04884483]
[1772198047336,0.70503844,1960.7,1960.3,1.32414565]
[1772198048330,4.25846624,1960.9,1960.3,1.32414565]
[1772198048635,2.64989538,1961.0,1960.4,0.05049678]
[1772198049036,3.35493382,1961.0,1960.4,0.05049678]
[1772198049941,3.35493382,1961.0,1960.5,1.2762849]
[1772198050356,1.97993382,1961.0,1960.5,1.2762849]
[1772198052648,0.70763124,1960.9,1960.5,1.2762849]
[1772198052864,0.70763124,1960.9,1960.5,0.0011]
[1772198053160,0.70763124,1960.9,1960.4,1.32679631]
[1772198053161,0.70763124,1960.8,1960.4,0.05159678]
[1772198053363,0.70763124,1960.8,1960.2,1.27644794]
[1772198053364,0.70763124,1960.8,1960.2,1.33162408]
[1772198053738,0.70763124,1960.4,1959.7,1.33087767]
[1772198053937,0.70763124,1960.1,1959.4,0.05517614]
[1772198054162,0.70763124,1960.1,1959.4,5.15856139]
[1772198054558,0.70763124,1960.0,1959.4,5.15856139]
[1772198055159,3.5539211,1960.2,1959.5,0.05666148]
[1772198055970,4.26155234,1960.2,1959.5,0.05666148]
[1772198056346,3.5539211,1960.2,1959.5,0.05666148]
[1772198056554,0.70763124,1960.1,1959.6,1.27577056]
[1772198056870,0.70763124,1960.1,1959.5,1.3324449]
[1772198057068,0.70763124,1960.1,1959.5,1.33389286]
[1772198057244,0.70763124,1960.1,1959.5,1.33394046]
[1772198057646,0.70763124,1960.1,1959.6,0.05810944]
[1772198058648,1.98312362,1960.1,1959.6,1.33387493]
[1772198059872,0.70763124,1960.1,1959.6,1.33387493]
[1772198060675,1.9830825,1960.1,1959.6,1.33387493]
[1772198060873,0.70763124,1960.0,1959.6,1.27576549]
[1772198061562,0.70763124,1960.0,1959.5,1.27578508]
[1772198061774,0.70763124,1960.0,1958.8,0.06091512]
[1772198061976,0.70763124,1960.0,1959.2,0.06091512]
[1772198062362,0.70763124,1960.0,1959.5,0.0011]
[1772198062685,0.70763124,1960.0,1959.5,0.0637981]
[1772198062886,1.27548468,1960.1,1959.5,0.0637981]
[1772198064350,0.70763124,1960.7,1959.5,0.0637981]
[1772198064779,0.70763124,1960.7,1959.7,0.06404174]
[1772198064780,0.70763124,1960.5,1959.7,0.06404174]
[1772198065670,1.27511986,1960.6,1959.7,0.06404174]
[1772198065871,0.70763124,1960.5,1959.7,0.06404174]
[1772198067168,0.70763124,1960.7,1959.9,0.06599578]
[1772198067984,0.70763124,1960.9,1959.9,0.06599578]
[1772198069270,1.27494505,1960.9,1960.1,0.06724932]
[1772198069481,5.80708698,1961.0,1960.1,0.06724932]
[1772198069482,0.70763124,1961.0,1960.1,0.06724932]
[1772198069779,0.001,1961.2,1960.2,0.06724932]
[1772198069780,0.70863124,1961.2,1960.2,0.06724932]
[1772198070150,1.98336766,1961.2,1960.2,0.06724932]
[1772198070357,0.70863124,1961.2,1960.2,0.06724932]
[1772198070687,1.27471349,1961.3,1960.1,2.57538733]
[1772198070688,1.27449348,1961.6,1960.4,0.06684831]
[1772198070887,1.98212472,1961.6,1960.4,0.06684831]
[1772198071381,1.98212472,1961.6,1960.6,0.06629411]
[1772198072180,1.27449348,1961.6,1960.6,0.06629411]
[1772198072386,0.70763124,1961.5,1960.6,0.06629411]
[1772198073581,1.27449348,1961.6,1960.8,0.06520546]
[1772198073982,1.98212472,1961.6,1960.8,0.06520546]
[1772198074170,0.70763124,1961.5,1960.8,0.06520546]
[1772198074354,0.001,1961.7,1960.8,0.06520546]
[1772198075095,1.27393153,1962.5,1960.8,0.06520546]
[1772198075096,0.001,1961.5,1960.9,0.06467108]
[1772198075306,0.70763124,1962.5,1960.9,0.06414333]
[1772198075481,1.27395026,1962.4,1961.0,1.27485976]
[1772198075800,1.27395026,1962.4,1961.1,0.06414333]
[1772198075801,0.70763124,1962.3,1961.1,0.06414333]
[1772198077682,0.70763124,1962.3,1961.3,0.0631157]
[1772198077683,1.27408011,1962.2,1961.3,0.0631157]
[1772198078370,5.80370886,1962.3,1961.3,0.0631157]
[1772198078371,1.98169726,1962.3,1961.3,0.0631157]
[1772198079206,0.70498844,1962.2,1961.3,0.0631157]
[1772198080096,1.97913348,1962.1,1961.4,1.27459977]
[1772198080810,0.70498844,1962.1,1961.4,1.3352356]
[1772198080979,0.70498844,1962.1,1961.5,0.06063583]
[1772198082100,0.70498844,1962.1,1961.6,1.27446982]
[1772198082308,0.70498844,1962.4,1961.7,0.05968546]
[1772198083901,1.27393845,1962.5,1961.7,0.05968546]
[1772198084204,0.70498844,1962.5,1961.8,1.27433989]
[1772198084411,0.70498844,1962.5,1961.9,0.05877128]
[1772198084902,1.97878139,1962.7,1961.9,0.05877128]
[1772198086108,0.70498844,1962.7,1961.9,0.05877128]
[1772198086298,0.70498844,1962.7,1962.0,1.33209016]
[1772198086496,1.27372227,1962.8,1962.1,0.05788018]
[1772198086701,1.97967692,1962.9,1962.1,0.05788018]
[1772198087309,0.001,1962.3,1962.1,0.05788018]
[1772198087917,0.001,1962.9,1962.1,0.05788018]
[1772198088092,0.001,1962.9,1962.2,0.056989]
[1772198088301,0.001,1962.9,1962.4,0.056989]
[1772198093900,0.001,1962.9,1962.6,0.05486744]
[1772198095014,0.001,1962.9,1962.3,1.27396737]
[1772198095015,0.70598844,1962.9,1962.3,1.27396737]
[1772198096886,0.70498844,1962.8,1962.3,1.27396737]
[1772198098298,0.001,1962.9,1962.4,0.05285761]
[1772198099109,0.70498844,1962.8,1962.3,1.27396737]
[1772198099308,0.70498844,1962.8,1962.1,1.92160631]
[1772198099309,0.70498844,1962.8,1962.1,0.0011]
[1772198099511,0.70498844,1962.6,1962.1,0.0011]
[1772198099713,0.001,1962.7,1962.1,0.053576]
[1772198100114,0.001,1962.7,1962.3,0.0520876]
[1772198100415,0.70548844,1963.2,1962.2,1.27408011]
[1772198100619,0.70548844,1963.2,1962.3,0.0510876]
[1772198101293,0.70548844,1963.4,1962.3,0.0510876]
[1772198101490,0.70548844,1963.4,1962.5,0.05070457]
[1772198102115,0.68606595,1963.5,1962.6,0.68766378]
[1772198103401,0.68606595,1963.8,1962.6,0.68766378]
[1772198104521,0.68606595,1963.6,1962.8,0.68766378]
[1772198105328,0.68606595,1963.6,1962.6,1.27378639]
[1772198106501,0.68606595,1963.4,1962.6,1.27378639]
[1772198108733,0.68606595,1963.2,1962.6,1.27378639]
[1772198110739,0.68606595,1963.2,1962.6,1.96801349]
[1772198110901,0.68691343,1963.4,1962.7,0.6942271]
[1772198111098,0.68691343,1963.6,1962.7,0.6942271]
[1772198111835,0.001,1963.3,1962.7,0.6942271]
[1772198113014,0.001,1963.3,1962.9,0.6942271]
[1772198114811,0.68691343,1963.7,1962.9,0.6942271]
[1772198115018,1.96002287,1963.7,1963.1,0.6942271]
[1772198115345,0.68691343,1963.7,1963.1,0.6942271]
[1772198115718,5.09140276,1964.1,1963.1,0.6942271]
[1772198115719,1.27288525,1964.1,1963.1,0.6942271]
[1772198115928,0.68691343,1963.9,1963.1,0.6942271]
[1772198117358,0.68691343,1963.9,1962.7,5.09476258]
[1772198117359,0.68691343,1963.7,1962.7,5.78921181]
[1772198118445,0.68691343,1963.7,1962.8,0.6942271]
[1772198119117,0.68691343,1963.7,1962.6,1.96914754]
[1772198119317,0.68691343,1963.5,1962.6,1.27492044]
[1772198119549,0.68691343,1963.5,1962.6,0.0011]
[1772198119713,0.68691343,1963.5,1962.6,1.27489732]
[1772198121443,0.68691343,1963.5,1962.6,0.6953271]
[1772198121444,0.68691343,1963.3,1962.6,0.6953271]
[1772198122549,0.68691343,1963.3,1962.6,0.0011]
[1772198123341,0.68691343,1963.2,1962.6,0.0011]
[1772198126443,0.68691343,1963.0,1962.6,0.0011]
[1772198128223,0.68691343,1963.5,1962.6,0.6953271]
[1772198128730,1.96021484,1963.4,1962.8,0.6942271]
[1772198130556,1.96011782,1963.6,1962.8,0.6942271]
[1772198130727,0.68691343,1963.5,1963.0,0.6942271]
[1772198131660,0.001,1963.8,1963.0,0.6942271]
[1772198132452,1.27404562,1963.8,1963.0,0.6942271]
[1772198132956,0.001,1964.2,1963.3,0.6942271]
[1772198133132,0.68691343,1964.1,1963.3,0.6942271]
[1772198135168,0.68691343,1964.1,1963.3,1.27332631]
[1772198135169,0.68691343,1964.0,1963.3,1.27332631]
[1772198135529,0.68691343,1964.0,1963.0,1.96775708]
[1772198137265,0.001,1963.9,1963.1,0.0011]
[1772198137552,0.001,1963.9,1963.1,0.6953271]
[1772198139152,0.001,1963.9,1963.3,0.73386514]
[1772198139328,0.001,1964.2,1963.3,0.73386514]
[1772198140768,0.7145874,1964.1,1963.3,0.73386514]
[1772198141832,0.001,1964.2,1963.5,0.67108708]
[1772198144662,0.001,1964.2,1963.7,0.67108708]
[1772198145533,0.7155874,1964.2,1963.7,0.67108708]
[1772198145734,0.7155874,1964.2,1963.6,1.27317172]
[1772198146162,0.7155874,1964.2,1963.6,1.9442588]
[1772198146557,0.7145874,1964.0,1963.4,0.67108708]
[1772198149143,0.7145874,1964.0,1963.5,1.27323656]
[1772198149668,0.7155874,1964.6,1963.7,0.67108708]
[1772198149871,0.7145874,1964.5,1963.7,0.67108708]
[1772198150868,0.001,1964.1,1963.5,1.94432364]
[1772198151051,0.7155874,1964.1,1963.5,1.94432364]
[1772198151249,1.9884832,1964.1,1963.5,1.94432364]
[1772198152043,0.7155874,1964.1,1963.5,1.94432364]
[1772198152368,1.9884461,1964.1,1963.5,1.94432364]
[1772198152572,0.7155874,1964.1,1963.5,1.94431752]
[1772198152773,1.98844405,1964.1,1963.5,1.94431752]
[1772198152972,0.7155874,1964.1,1963.5,1.94431752]
[1772198153343,1.98843531,1964.1,1963.5,1.94431752]
[1772198154371,0.7155874,1964.1,1963.5,1.94431752]
[1772198154546,1.98844938,1964.1,1963.5,1.94431752]
[1772198154743,0.7145874,1964.0,1963.1,0.67218708]
[1772198155089,0.7145874,1964.0,1963.1,1.94562436]
[1772198155244,0.7145874,1964.0,1963.1,0.0011]
[1772198155444,0.7145874,1963.6,1963.1,0.0011]
[1772198157468,0.7145874,1963.4,1963.1,0.0011]
[1772198159183,0.7145874,1963.4,1963.0,0.0011]
[1772198159663,0.7145874,1963.2,1963.0,0.0011]
[1772198160060,0.7145874,1963.6,1963.0,0.0011]
[1772198161864,0.7145874,1963.4,1963.0,0.0011]
[1772198162776,0.7145874,1963.4,1963.2,0.0011]
[1772198162960,0.7145874,1963.4,1963.0,0.0011]
[1772198164284,0.7145874,1963.4,1962.8,0.0011]
[1772198164285,0.7145874,1963.2,1962.8,0.0011]
[1772198164483,0.7145874,1963.2,1962.5,0.0011]
[1772198164655,0.7145874,1963.2,1962.5,0.67218708]
[1772198165484,0.7145874,1963.4,1962.5,0.67218708]
[1772198166575,1.98791512,1963.4,1962.7,0.67108708]
[1772198167171,0.7145874,1963.3,1962.7,0.67108708]
[1772198168795,0.7145874,1963.3,1962.8,1.27369064]
[1772198168796,1.98795487,1963.3,1962.8,1.27369064]
[1772198169693,0.7145874,1963.3,1962.8,1.27369064]
[1772198170392,0.7145874,1963.3,1962.8,1.96455023]
[1772198170598,1.98795701,1963.3,1962.8,1.96455023]
[1772198174000,1.99224108,1963.9,1962.9,0.69085959]
[1772198174705,0.71926123,1963.8,1962.9,0.69085959]
[1772198175204,0.001,1963.5,1962.9,0.69085959]
[1772198176104,0.001,1963.5,1963.1,0.69085959]
[1772198178278,0.001,1963.5,1963.2,1.96429072]
[1772198180198,0.001,1963.5,1963.2,1.27343113]
[1772198180709,0.72026123,1963.5,1963.1,1.273496]
[1772198180906,0.72026123,1963.5,1962.7,0.0011]
[1772198181087,0.72026123,1963.5,1962.8,1.27369064]
[1772198181677,0.72026123,1963.5,1962.8,1.96455023]
[1772198184007,0.71926123,1963.4,1962.8,1.27369064]
[1772198184212,0.71926123,1963.4,1962.9,0.69085959]
[1772198186120,0.71926123,1963.2,1962.7,0.69195959]
[1772198186418,0.71926123,1963.2,1962.7,0.0011]
[1772198188104,0.71926123,1963.0,1962.7,0.0011]
[1772198191124,0.71926123,1962.9,1962.5,0.0011]
[1772198193824,0.71926123,1963.1,1962.5,0.69195959]
[1772198194215,1.99275912,1963.1,1962.5,0.69195959]
[1772198195930,1.99275912,1963.1,1962.6,1.96468003]
[1772198198328,0.72145375,1963.3,1962.7,0.66746262]
[1772198199127,0.001,1963.0,1962.7,0.66746262]
[1772198200620,0.69696372,1963.0,1962.6,1.27489289]
[1772198201623,0.69696372,1963.0,1962.6,0.0011]
[1772198202625,1.96958947,1962.9,1962.6,0.0011]
[1772198203224,0.69596372,1962.8,1962.5,0.0011]
[1772198205437,1.96965943,1962.8,1962.5,0.0011]
[1772198206933,0.69596372,1962.8,1962.5,0.0011]
[1772198207234,0.69596372,1962.7,1962.5,0.0011]
[1772198210541,1.96977847,1962.7,1962.5,0.0011]
[1772198210842,0.69596372,1962.6,1962.1,1.94171752]
[1772198211923,0.69596372,1962.6,1962.1,0.0011]
[1772198212923,0.69596372,1962.4,1962.1,0.0011]
[1772198216718,0.69596372,1962.3,1962.1,0.0011]
[1772198216954,1.97002918,1962.3,1962.1,0.0011]
[1772198217917,0.69596372,1962.3,1962.1,0.0011]
[1772198218447,0.69596372,1962.2,1962.1,0.0011]
[1772198218949,0.69596372,1962.4,1962.1,0.0011]
[1772198219443,1.27388966,1962.5,1962.1,0.66761478]
[1772198219747,1.96985338,1962.5,1962.1,0.66761478]
[1772198220118,1.96985064,1962.5,1962.1,0.66761478]
[1772198221147,1.96985064,1962.5,1962.1,1.94175065]
[1772198221346,1.96985064,1962.5,1962.1,0.66761478]
[1772198222439,0.69596372,1962.4,1962.0,0.0011]
[1772198222640,0.69596372,1962.4,1961.7,1.94089478]
[1772198222841,0.69596372,1962.4,1961.8,0.66651478]
[1772198223236,1.9699789,1962.3,1962.2,0.0011]
[1772198223622,0.69596372,1962.3,1962.2,0.0011]
[1772198224356,0.69596372,1962.5,1962.2,0.0011]
[1772198224857,0.001,1962.7,1962.2,0.66761478]
[1772198225226,0.001,1962.7,1962.4,0.66651478]
[1772198226859,0.001,1963.0,1962.4,0.66651478]
[1772198227256,0.001,1963.0,1962.6,0.66651478]
[1772198229733,0.69696372,1963.4,1962.8,0.66651478]
[1772198234951,0.69696372,1963.4,1962.9,1.27362575]
[1772198235152,0.69696372,1963.4,1963.0,0.67252854]
[1772198236262,0.001,1963.3,1963.0,0.67252854]
[1772198237251,0.69269217,1963.3,1962.8,1.94619515]
[1772198237663,0.69269217,1963.3,1962.8,1.27366661]
[1772198238165,0.69269217,1963.3,1962.6,0.67252854]
[1772198238366,0.69269217,1963.3,1962.6,1.94634898]
[1772198238748,0.001,1963.5,1962.8,0.67252854]
[1772198239275,0.001,1963.5,1963.0,0.67252854]
[1772198241353,0.001,1963.5,1963.2,0.67252854]
[1772198241556,0.69269217,1964.1,1963.3,0.67252854]
[1772198241872,0.69169217,1964.0,1963.1,1.94602454]
[1772198242082,0.69169217,1964.0,1963.2,0.67252854]
[1772198243577,0.69169217,1963.9,1963.3,1.94589481]
[1772198244375,0.69169217,1963.9,1963.3,1.27336627]
[1772198244578,0.69169217,1963.9,1963.3,1.94589481]
[1772198244753,0.69169217,1963.9,1963.4,0.67252854]
[1772198245873,0.69169217,1963.9,1963.5,1.27323656]
[1772198246050,1.96554315,1964.1,1963.6,0.67252854]
[1772198246250,0.69269217,1964.1,1963.6,0.67252854]
[1772198246772,1.96554525,1964.1,1963.6,0.67252854]
[1772198247367,0.69269217,1964.1,1963.6,0.67252854]
[1772198247573,0.001,1964.1,1963.6,0.67252854]
[1772198247747,0.001,1964.1,1963.8,0.67252854]
[1772198249081,0.001,1964.6,1963.8,0.67252854]
[1772198250075,0.001,1964.8,1964.2,0.67252854]
[1772198251856,0.001,1964.8,1964.4,0.67252854]
[1772198252280,0.69269217,1964.8,1964.3,1.27271801]
[1772198252688,0.001,1964.8,1964.4,0.67252854]
[1772198252913,0.001,1964.9,1964.5,0.67252854]
[1772198253066,0.001,1965.3,1964.5,0.67252854]
[1772198253978,0.001,1965.3,1965.0,0.67252854]
[1772198254194,3.87653279,1965.3,1964.2,1.94531135]
[1772198254499,0.69169217,1965.2,1964.2,1.27278281]
[1772198254792,3.18484062,1965.3,1964.1,1.94532354]
[1772198254793,0.69169217,1965.0,1964.1,1.94532354]
[1772198254991,0.69169217,1964.8,1963.7,0.67252854]
[1772198256298,1.96413602,1964.8,1963.9,0.67252854]
[1772198257261,0.69169217,1964.7,1963.9,0.67252854]
[1772198258384,1.96415253,1964.7,1964.1,0.66996995]
[1772198260309,1.96415253,1964.7,1964.2,0.7054463]
[1772198260310,0.69169217,1964.7,1964.2,0.7054463]
[1772198260606,0.001,1964.8,1964.3,1.27271801]
[1772198260775,0.70027232,1964.8,1964.3,1.27271801]
[1772198261204,0.70027232,1964.8,1964.2,1.97818231]
[1772198261361,0.70027232,1964.8,1964.0,0.0011]
[1772198261563,0.18685624,1964.7,1964.0,0.0011]
[1772198261763,0.69927232,1964.6,1964.0,0.0011]
[1772198262391,0.69927232,1964.5,1964.0,0.0011]
[1772198262922,0.69927232,1964.7,1964.0,0.7054463]
[1772198263291,1.27339536,1964.8,1964.0,0.7054463]
[1772198264130,1.97266768,1964.8,1964.0,0.7054463]
[1772198264427,0.69927232,1964.7,1964.1,1.27284761]
[1772198264723,0.69927232,1964.7,1964.0,1.97830563]
[1772198264930,0.69927232,1964.7,1964.0,0.0011]
[1772198265430,0.69927232,1964.5,1964.0,0.0011]
[1772198266398,0.69927232,1964.3,1964.0,0.0011]
[1772198270004,1.27278281,1964.2,1964.0,0.0011]
[1772198270315,1.97205513,1964.2,1964.0,0.0011]
[1772198272558,1.97205513,1964.2,1964.1,0.0011]
[1772198273520,1.97305513,1964.2,1964.1,0.0011]
[1772198274528,0.001,1964.2,1964.1,0.0011]
[1772198280734,0.001,1964.2,1964.1,0.7054463]
[1772198280933,0.70027232,1964.2,1964.1,0.0011]
[1772198281131,0.70027232,1964.2,1963.8,0.0011]
[1772198281711,0.70027232,1964.2,1963.8,0.7054463]
[1772198281712,1.9731013,1964.2,1963.8,0.7054463]
[1772198281918,1.27382898,1964.2,1963.8,0.7054463]
[1772198282436,0.001,1964.2,1963.8,0.7054463]
[1772198282615,0.69927232,1964.7,1963.9,0.7043463]
[1772198283933,1.27252366,1964.6,1963.9,0.7043463]
[1772198284133,1.27252366,1964.6,1964.0,0.7043463]
[1772198285515,0.70027232,1964.2,1963.9,0.0011]
[1772198285718,0.001,1964.2,1963.9,0.0011]
[1772198286311,0.001,1964.2,1963.9,0.7054463]
[1772198286517,1.27261246,1964.5,1964.0,0.7043463]
[1772198287538,5.7894959,1964.6,1964.0,0.7043463]
[1772198287539,1.97183984,1964.6,1964.0,0.7043463]
[1772198288944,1.97183984,1964.6,1964.1,0.7043463]
[1772198290044,0.64298609,1964.5,1963.9,0.0011]
[1772198290822,1.27265322,1964.4,1963.9,0.6942206]
[1772198291355,0.64298609,1964.3,1963.9,0.0011]
[1772198291854,1.27252366,1964.6,1964.0,0.6931206]
[1772198292913,0.64298609,1964.6,1963.9,0.6942206]
[1772198294643,0.64298609,1964.6,1963.9,0.0011]
[1772198294858,0.64298609,1964.1,1963.9,0.0011]
[1772198295027,0.64298609,1964.1,1963.6,0.0011]
[1772198296863,1.91589851,1964.0,1963.6,0.0011]
[1772198297365,1.91589851,1964.0,1963.9,0.0011]
[1772198298157,0.64298609,1963.9,1963.6,0.0011]
[1772198298336,0.64298609,1963.9,1963.8,0.0011]
[1772198299371,1.91596332,1963.9,1963.8,0.0011]
[1772198300165,1.91596332,1963.9,1963.6,0.0011]
[1772198300572,0.64298609,1964.2,1963.6,0.6942206]
[1772198302066,1.91578257,1964.2,1963.6,1.96739232]
[1772198302373,0.64298609,1964.1,1963.6,0.6942206]
[1772198303952,1.27291242,1964.0,1963.6,0.6942206]
[1772198304763,1.91589851,1964.0,1963.6,0.0011]
[1772198304967,0.64298609,1963.9,1963.6,0.0011]
[1772198305449,1.27291242,1964.0,1963.6,0.6942206]
[1772198306790,0.64298609,1963.9,1963.6,0.0011]
[1772198308394,0.64298609,1964.1,1963.6,0.0011]
[1772198308586,0.64298609,1964.1,1963.6,0.6942206]
[1772198310099,0.64298609,1964.1,1963.7,0.0011]
[1772198310595,0.64398609,1964.0,1963.7,0.0011]
[1772198310900,1.27297723,1963.9,1963.7,0.0011]
[1772198311090,1.91694569,1964.0,1963.7,0.0011]
[1772198315114,0.64298609,1963.9,1963.7,0.0011]
[1772198315284,1.91601467,1963.9,1963.7,0.0011]
[1772198315483,0.64298609,1963.8,1963.5,0.0011]
[1772198316622,5.09276582,1964.0,1963.5,0.6942206]
[1772198316623,0.001,1964.0,1963.5,0.6942206]
[1772198317205,1.91564935,1964.4,1963.7,0.6931206]
[1772198319425,1.27361611,1964.5,1963.9,0.64898119]
[1772198319807,0.001,1964.5,1963.9,0.64898119]
[1772198321601,0.001,1964.5,1964.2,0.69630816]
[1772198322002,0.001,1964.5,1964.1,2.68831494]
[1772198322003,0.001,1964.8,1964.3,0.69630816]
[1772198322221,1.94832129,1965.3,1964.2,0.69630816]
[1772198322423,0.001,1965.3,1964.2,0.69630816]
[1772198322627,0.67524671,1965.2,1964.2,0.69630816]
[1772198323708,0.67524671,1965.0,1964.4,0.69630816]
[1772198324307,0.67524671,1965.0,1964.2,0.69630816]
[1772198324729,0.67524671,1965.0,1964.0,1.96917545]
[1772198324927,0.67524671,1965.0,1964.0,1.96921278]
[1772198325132,0.67524671,1965.0,1964.0,0.69630816]
[1772198325447,0.67524671,1965.0,1964.0,1.9692163]
[1772198326013,0.67524671,1964.8,1964.0,1.9692163]
[1772198327359,0.67524671,1964.8,1964.1,0.69630816]
[1772198328263,1.27245889,1964.7,1964.1,0.69630816]
[1772198328459,0.67524671,1964.6,1964.1,0.69630816]
[1772198329164,0.67524671,1964.6,1963.8,0.0011]
[1772198330232,0.67524671,1964.4,1963.8,0.0011]
[1772198330437,1.27258844,1964.5,1963.8,0.69740816]
[1772198331160,1.94783515,1964.5,1963.8,0.69740816]
[1772198331346,1.69323322,1964.5,1963.8,0.69740816]
[1772198332168,0.67524671,1964.4,1963.8,0.69740816]
[1772198332667,1.94796472,1964.3,1963.8,0.0011]
[1772198332865,0.67524671,1964.2,1963.8,0.0011]
[1772198334150,0.67524671,1964.2,1963.8,1.27412344]
[1772198334658,1.94794971,1964.4,1963.8,0.69740816]
[1772198335668,1.94794971,1964.4,1963.9,0.69740816]
[1772198337150,1.94794971,1964.4,1963.9,1.97034945]
[1772198337348,0.67524671,1964.4,1963.9,1.97034945]
[1772198337745,1.9479066,1964.4,1963.9,1.97034945]
[1772198338054,1.9479066,1964.4,1963.9,0.69740816]
[1772198338262,1.9479066,1964.4,1963.9,1.9703716]
[1772198340182,1.9479066,1964.4,1963.9,0.69740816]
[1772198340574,1.9479066,1964.4,1963.9,1.97037281]
[1772198340873,0.67524671,1964.3,1963.9,0.69740816]
[1772198341048,0.67524671,1964.3,1963.9,0.0011]
[1772198341676,0.67524671,1964.1,1963.7,0.0011]
[1772198343779,0.67524671,1963.9,1963.7,0.0011]
[1772198344078,0.67524671,1963.9,1963.4,0.0011]
[1772198344886,0.67524671,1963.9,1963.4,1.97070806]
[1772198345581,5.09125081,1964.2,1963.5,0.69630816]
[1772198345582,0.67524671,1964.2,1963.5,0.69630816]
[1772198345780,1.94807568,1964.2,1963.6,1.27317172]
[1772198345967,1.94807568,1964.2,1963.6,1.96947988]
[1772198346571,0.67524671,1964.4,1963.7,0.69630816]
[1772198347686,0.001,1964.1,1963.7,0.69630816]
[1772198347882,0.001,1964.1,1963.8,1.27304206]
[1772198348060,0.001,1964.1,1963.9,0.69630816]
[1772198348385,1.94791507,1964.4,1963.9,0.69630816]
[1772198349486,1.94791507,1964.4,1963.7,1.96937351]
[1772198349487,0.67524671,1964.3,1963.7,1.96937351]
[1772198349687,0.67524671,1964.3,1963.8,0.69630816]
[1772198350062,0.67524671,1964.3,1963.6,0.0011]
[1772198350063,0.66938795,1964.1,1963.6,0.0011]
[1772198350286,0.66938795,1964.1,1963.6,1.27425428]
[1772198350500,0.66938795,1964.1,1963.6,1.9021259]
[1772198351484,0.66938795,1964.5,1963.7,0.62787162]
[1772198352281,1.27265322,1964.4,1963.9,0.62787162]
[1772198353975,1.27256339,1964.6,1963.9,0.62787162]
[1772198354176,0.66938795,1964.6,1963.9,5.71952131]
[1772198354358,0.66938795,1964.6,1963.7,0.62787162]
[1772198354359,0.18685624,1964.5,1963.7,0.62787162]
[1772198354565,0.66938795,1964.4,1963.7,1.90096949]
[1772198355885,0.66938795,1964.4,1963.7,0.62787162]
[1772198356292,0.66938795,1964.2,1963.6,0.0011]
[1772198356689,0.66938795,1964.2,1963.6,0.62897162]
[1772198358711,0.66938795,1964.0,1963.6,0.0011]
[1772198359686,1.27284761,1964.1,1963.7,0.62787162]
[1772198359687,0.001,1964.1,1963.7,0.62787162]
[1772198360385,1.27259813,1964.5,1963.7,0.62787162]
[1772198360794,1.27259813,1964.5,1963.9,0.62787162]
[1772198361097,1.27348693,1964.7,1963.9,0.62787162]
[1772198361298,1.94287488,1964.7,1963.9,0.62787162]
[1772198362813,0.66938795,1964.6,1964.0,1.27291242]
[1772198363112,0.66938795,1964.6,1963.6,1.9020967]
[1772198363312,0.66938795,1964.6,1963.7,0.62787162]